bitfinex/quotes_SOLUSD_20260115
["timestamp","ask_amount","ask_price","bid_price","bid_amount"]
[1768489593747,1.15492222,143.9,143.86,17.37775007]
[1768489593919,1.15492222,143.9,143.87,6.95038644]
[1768489594116,1.15492222,143.9,143.86,6.95104223]
[1768489594718,1.15492222,143.89,143.86,6.95104223]
[1768489594919,1.15492222,143.89,143.84,24.33235972]
[1768489595439,11.93077911,143.91,143.85,11.91844453]
[1768489595817,24.61077911,143.93,143.87,1.14258764]
[1768489596434,13.83492222,143.93,143.88,11.91844453]
[1768489596820,13.83492222,143.93,143.86,1.14258764]
[1768489597134,1.15492222,143.92,143.87,17.72657628]
[1768489597317,1.15492222,143.91,143.87,6.95071939]
[1768489598221,1.15492222,143.91,143.86,6.95105893]
[1768489598627,1.15492222,143.88,143.85,6.95149495]
[1768489598937,10.77585689,143.9,143.85,6.95149495]
[1768489599147,11.93077911,143.9,143.84,36.25090827]
[1768489599325,1.15492222,143.9,143.84,36.25090827]
[1768489599524,11.93077911,143.9,143.84,36.25090827]
[1768489599925,18.8791534,143.92,143.86,1.14258764]
[1768489600140,11.93077911,143.89,143.84,24.33246374]
[1768489600344,1.15492222,143.89,143.84,36.25090827]
[1768489601640,11.93077911,143.89,143.84,8.09475671]
[1768489602141,1.15492222,143.88,143.84,6.95216907]
[1768489602730,18.88118428,143.88,143.83,8.09514027]
[1768489603324,11.93077911,143.88,143.83,8.09514027]
[1768489603528,1.15492222,143.84,143.8,17.38488424]
[1768489603844,11.93077911,143.86,143.81,6.95331998]
[1768489604151,11.93077911,143.86,143.81,6.95342104]
[1768489604833,18.88228659,143.86,143.81,6.95342104]
[1768489605248,17.72736437,143.86,143.81,6.95342104]
[1768489605431,1.15492222,143.85,143.81,6.95342104]
[1768489605632,11.93077911,143.85,143.81,6.95342104]
[1768489607244,18.88250743,143.85,143.81,6.95342104]
[1768489607639,18.88250743,143.85,143.8,1.14258764]
[1768489607844,10.77585689,143.84,143.8,1.14258764]
[1768489608047,18.88250743,143.85,143.8,8.09655168]
[1768489608233,1.15492222,143.85,143.8,8.09655168]
[1768489608434,12.68,143.86,143.82,1.14258764]
[1768489608940,13.83492222,143.86,143.8,36.25766587]
[1768489609135,1.15492222,143.85,143.8,25.48180898]
[1768489609436,1.15492222,143.85,143.8,8.09655168]
[1768489609437,11.93077911,143.85,143.8,8.09655168]
[1768489609832,1.15492222,143.85,143.8,8.09655168]
[1768489610156,24.61077911,143.86,143.81,1.14258764]
[1768489610623,1.15492222,143.85,143.81,1.14258764]
[1768489611448,11.93077911,143.85,143.81,1.14258764]
[1768489611951,1.26480769,143.83,143.8,6.95396404]
[1768489612149,1.26480769,143.81,143.76,29.42645761]
[1768489612329,20.89759082,143.83,143.77,8.21645929]
[1768489612528,1.26480769,143.82,143.77,8.21645929]
[1768489614744,18.99389455,143.82,143.77,8.21645929]
[1768489614950,1.26480769,143.81,143.77,6.955554]
[1768489615154,12.04066458,143.81,143.75,12.03676218]
[1768489615448,12.04066458,143.81,143.75,7.89192769]
[1768489615449,7.89583009,143.81,143.75,7.89192769]
[1768489615643,6.95322997,143.82,143.77,8.21642298]
[1768489615644,6.6310224,143.82,143.77,8.21642298]
[1768489615846,12.68,143.86,143.81,1.26090529]
[1768489616049,19.63139921,143.86,143.81,1.23090532]
[1768489616241,13.94480769,143.86,143.81,1.23090532]
[1768489616638,13.94480769,143.86,143.81,6.6310224]
[1768489616843,12.68,143.86,143.81,6.6310224]
[1768489617258,13.94480769,143.86,143.81,6.6310224]
[1768489617960,13.94480769,143.86,143.83,6.95265243]
[1768489619165,1.26480769,143.85,143.82,6.95297286]
[1768489619366,26.26229819,143.86,143.82,6.95297286]
[1768489619564,20.57583009,143.86,143.82,6.95297286]
[1768489619770,12.68,143.86,143.83,1.26090529]
[1768489620264,0.43900001,143.88,143.84,1.26090529]
[1768489620465,1.26480769,143.9,143.85,7.89192769]
[1768489620645,7.89583009,143.92,143.86,13.94090529]
[1768489620847,7.89583009,143.91,143.86,13.94090529]
[1768489621046,1.26480769,143.91,143.87,6.95071939]
[1768489621242,8.21364398,143.91,143.87,6.95071939]
[1768489621649,14.84466638,143.91,143.86,20.89191132]
[1768489622171,1.26480769,143.91,143.86,20.89191132]
[1768489622374,8.21280877,143.93,143.87,1.26090529]
[1768489622575,14.84383117,143.93,143.87,1.26090529]
[1768489622756,7.89583009,143.92,143.87,1.26090529]
[1768489622959,1.26480769,143.92,143.87,1.26090529]
[1768489623374,14.84450997,143.92,143.87,8.21150895]
[1768489623581,8.21348757,143.92,143.88,1.26090529]
[1768489624066,1.26480769,143.92,143.88,1.26090529]
[1768489624251,14.84426588,143.92,143.87,8.21150895]
[1768489624654,1.26480769,143.92,143.87,8.21150895]
[1768489624952,13.57901391,143.93,143.88,1.26090529]
[1768489624953,7.89583009,143.93,143.88,1.26090529]
[1768489625173,1.26480769,143.89,143.84,13.94090529]
[1768489625473,7.89583009,143.89,143.84,13.94090529]
[1768489626460,7.89583009,143.89,143.82,6.95276071]
[1768489626461,1.26480769,143.86,143.82,6.95276071]
[1768489626666,7.89583009,143.87,143.82,13.94090529]
[1768489627466,1.26480769,143.86,143.83,6.95263868]
[1768489627662,1.26480769,143.85,143.82,19.63295281]
[1768489627882,7.89583009,143.85,143.82,12.68]
[1768489628183,1.26480769,143.84,143.82,12.68]
[1768489628385,7.89583009,143.86,143.82,19.63311815]
[1768489628584,1.26480769,143.85,143.82,12.68]
[1768489628769,1.26480769,143.83,143.79,6.95424691]
[1768489628978,1.26480769,143.83,143.78,20.57192769]
[1768489629374,8.21580203,143.87,143.82,6.95292562]
[1768489629672,14.84682443,143.87,143.82,6.95292562]
[1768489629977,7.89583009,143.87,143.82,6.95292562]
[1768489630288,1.26480769,143.89,143.84,1.26090529]
[1768489630866,15.27478781,143.91,143.86,1.26090529]
[1768489631788,15.27478781,143.91,143.86,8.21180851]
[1768489632084,8.64376541,143.91,143.86,8.21180851]
[1768489632284,1.26480769,143.9,143.86,8.21180851]
[1768489632478,7.89583009,143.9,143.85,6.95149285]
[1768489632788,7.89583009,143.9,143.84,31.32081339]
[1768489632789,1.26480769,143.89,143.84,20.89277862]
[1768489633462,1.26480769,143.88,143.84,12.68]
[1768489633667,8.21509595,143.88,143.84,19.63202117]
[1768489633871,1.26480769,143.87,143.83,6.95250236]
[1768489634487,1.26480769,143.86,143.82,6.95294511]
[1768489634691,1.26480769,143.85,143.82,6.95294511]
[1768489635268,1.26480769,143.85,143.81,19.63341751]
[1768489635570,6.6310224,143.86,143.81,12.68]
[1768489635571,1.26480769,143.83,143.81,12.68]
[1768489635774,1.26480769,143.83,143.8,6.9538042]
[1768489635999,8.21680326,143.85,143.8,6.9538042]
[1768489636189,1.26480769,143.84,143.8,6.9538042]
[1768489637270,1.26480769,143.84,143.81,6.95352852]
[1768489637899,1.26480769,143.84,143.8,6.95410292]
[1768489638207,1.26480769,143.84,143.8,13.58512532]
[1768489638368,143.19270817,143.9,143.81,20.57192769]
[1768489638369,7.89583009,143.87,143.81,20.57192769]
[1768489638574,1.26480769,143.86,143.81,20.57192769]
[1768489638799,6.6310224,143.87,143.8,6.95410292]
[1768489638800,1.26480769,143.83,143.8,6.95410292]
[1768489639087,1.26480769,143.82,143.79,6.95440977]
[1768489639413,1.26480769,143.82,143.78,19.63494468]
[1768489639709,1.26480769,143.81,143.75,6.6310224]
[1768489639880,1.26480769,143.81,143.76,19.63603784]
[1768489640497,1.26480769,143.8,143.76,19.63603784]
[1768489640906,1.26480769,143.8,143.76,12.68]
[1768489641081,1.34577577,143.78,143.76,12.68]
[1768489641276,1.34577577,143.78,143.74,13.5877104]
[1768489641483,1.34577577,143.78,143.73,20.70403867]
[1768489641703,7.97679817,143.8,143.75,6.95639866]
[1768489641915,1.34577577,143.79,143.75,6.95639866]
[1768489642584,1.34577577,143.81,143.76,1.39301627]
[1768489642785,1.34577577,143.81,143.77,1.39301627]
[1768489642985,1.34577577,143.81,143.75,25.74071927]
[1768489643187,1.34577577,143.79,143.75,6.95639866]
[1768489643383,1.34577577,143.79,143.75,12.68]
[1768489644310,1.37691313,143.78,143.73,6.95739872]
[1768489644518,1.37691313,143.77,143.74,6.95692048]
[1768489646110,1.37691313,143.77,143.73,26.26838475]
[1768489646316,1.37691313,143.77,143.73,19.63736235]
[1768489648198,1.37691313,143.76,143.73,12.68]
[1768489648620,1.37691313,143.78,143.74,1.36617852]
[1768489649128,1.37691313,143.78,143.73,43.66215429]
[1768489649314,1.37691313,143.78,143.73,45.02833281]
[1768489649513,1.37691313,143.78,143.73,38.39731041]
[1768489649698,1.37691313,143.78,143.73,45.02833281]
[1768489650816,1.37691313,143.78,143.73,43.66215429]
[1768489651024,1.37691313,143.78,143.73,1.36617852]
[1768489651025,8.33207843,143.78,143.73,1.36617852]
[1768489651201,1.37691313,143.75,143.72,0.1]
[1768489651396,1.37691313,143.73,143.68,6.95952965]
[1768489651601,6.6310224,143.73,143.68,6.95971046]
[1768489651798,6.6310224,143.73,143.69,6.95942252]
[1768489652210,0.14216157,143.74,143.67,21.20627728]
[1768489652532,6.6310224,143.71,143.67,19.84027487]
[1768489652730,5.48625013,143.74,143.67,21.20645339]
[1768489652928,6.95652173,143.75,143.68,1.36617852]
[1768489653105,6.6310224,143.73,143.68,1.36617852]
[1768489653602,8.00793553,143.72,143.67,19.84027487]
[1768489653912,8.00793553,143.72,143.67,21.20645339]
[1768489654217,1.37691313,143.72,143.69,6.95942654]
[1768489654624,1.31691309,143.72,143.68,6.95973747]
[1768489654810,8.27489226,143.72,143.67,21.20639449]
[1768489655009,6.6310224,143.71,143.67,1.56617852]
[1768489655212,6.6310224,143.71,143.68,12.68]
[1768489655731,6.6310224,143.71,143.67,12.88]
[1768489655952,6.6310224,143.7,143.67,12.88]
[1768489656228,6.6310224,143.7,143.67,0.2]
[1768489656624,8.00793553,143.69,143.67,0.2]
[1768489656823,1.37691313,143.69,143.66,0.2]
[1768489657137,1.37691313,143.68,143.66,0.2]
[1768489657518,8.00793553,143.67,143.65,0.2]
[1768489657910,6.6310224,143.68,143.65,0.2]
[1768489658110,1.37691313,143.67,143.65,0.2]
[1768489660429,14.96789408,143.68,143.65,0.2]
[1768489660740,8.00793553,143.67,143.65,0.2]
[1768489661336,6.6310224,143.69,143.65,0.2]
[1768489661637,1.37691313,143.69,143.65,7.16129871]
[1768489661836,6.6310224,143.68,143.65,7.16129871]
[1768489662036,8.00793553,143.67,143.65,0.2]
[1768489662630,1.37691313,143.65,143.61,0.1]
[1768489662820,8.00793553,143.63,143.61,0.1]
[1768489663341,1.37691313,143.63,143.61,0.1]
[1768489663555,1.37691313,143.61,143.56,6.96562653]
[1768489663721,1.37691313,143.6,143.56,1.36617852]
[1768489663920,1.37691313,143.61,143.56,14.06617852]
[1768489664536,8.00793553,143.61,143.56,14.06617852]
[1768489664939,1.37691313,143.6,143.56,12.7]
[1768489665139,8.00793553,143.6,143.56,12.7]
[1768489665336,1.37691313,143.61,143.56,14.06617852]
[1768489665548,8.00793553,143.6,143.56,12.7]
[1768489665736,8.00793553,143.6,143.56,19.66555508]
[1768489666341,1.37691313,143.6,143.56,19.66555508]
[1768489666739,6.6310224,143.59,143.55,14.06617852]
[1768489667177,8.00793553,143.58,143.53,1.36617852]
[1768489667331,8.00793553,143.55,143.51,26.20172504]
[1768489667529,8.00793553,143.55,143.51,1.36617852]
[1768489667733,1.37691313,143.55,143.51,12.7]
[1768489668452,1.37691313,143.54,143.49,21.03529904]
[1768489668657,6.96583262,143.56,143.5,1.36617852]
[1768489668658,1.37691313,143.55,143.5,1.36617852]
[1768489668858,0.14216157,143.58,143.53,1.36617852]
[1768489669156,1.37691313,143.57,143.53,12.7]
[1768489669345,8.00793553,143.56,143.53,12.7]
[1768489669546,1.37691313,143.56,143.52,12.7]
[1768489669858,6.6310224,143.57,143.52,21.03376322]
[1768489670044,8.34190673,143.58,143.52,21.03376322]
[1768489670247,6.6310224,143.57,143.52,21.03376322]
[1768489670444,1.37691313,143.58,143.53,1.36617852]
[1768489670636,14.9727079,143.58,143.53,1.36617852]
[1768489671337,1.48483872,143.54,143.49,1.51570889]
[1768489671544,1.48483872,143.58,143.53,1.51570889]
[1768489671840,1.48483872,143.58,143.54,1.51570889]
[1768489672041,8.44913836,143.59,143.54,1.51570889]
[1768489672259,8.11586112,143.59,143.54,1.51570889]
[1768489672463,1.48483872,143.61,143.56,1.51570889]
[1768489672758,4.3463221,143.65,143.54,1.51570889]
[1768489672759,8.11586112,143.6,143.54,1.51570889]
[1768489672953,1.48483872,143.59,143.54,14.21570889]
[1768489673155,1.48483872,143.61,143.55,1.51570889]
[1768489673352,8.11586112,143.6,143.55,1.51570889]
[1768489673738,8.11586112,143.6,143.55,8.48152473]
[1768489673939,1.48483872,143.6,143.56,1.51570889]
[1768489674157,15.07980923,143.6,143.54,21.18232012]
[1768489674354,1.48483872,143.59,143.55,12.7]
[1768489674557,1.48483872,143.58,143.52,1.51570889]
[1768489674762,1.48483872,143.58,143.53,21.18251516]
[1768489674946,1.48483872,143.58,143.53,27.81353756]
[1768489675346,1.48483872,143.58,143.53,31.9913625]
[1768489675566,1.48483872,143.58,143.54,8.48231924]
[1768489675860,19.25763417,143.6,143.55,1.51570889]
[1768489676042,8.44878683,143.6,143.55,1.51570889]
[1768489676959,8.44878683,143.6,143.52,17.41827299]
[1768489677164,1.48483872,143.56,143.46,0.1]
[1768489677362,1.48483872,143.59,143.52,10.80884734]
[1768489677554,12.29368606,143.59,143.53,12.7]
[1768489677955,13.79235787,143.61,143.54,10.80884734]
[1768489678154,19.25711665,143.61,143.53,12.7]
[1768489678371,8.44773548,143.62,143.55,17.77492785]
[1768489678567,19.25658282,143.62,143.55,17.77492785]
[1768489678866,5.83116082,143.65,143.59,10.80884734]
[1768489679042,4.3463221,143.65,143.61,1.51570889]
[1768489679245,5.83116082,143.65,143.59,1.51570889]
[1768489679566,12.29368606,143.64,143.6,12.7]
[1768489679770,1.48483872,143.62,143.57,1.51570889]
[1768489680064,1.48483872,143.62,143.59,12.7]
[1768489680442,12.29368606,143.62,143.59,12.7]
[1768489680644,1.48483872,143.62,143.59,12.7]
[1768489681067,8.44669989,143.64,143.59,12.7]
[1768489681251,11.3077558,143.65,143.6,1.51570889]
[1768489681570,5.83116082,143.65,143.6,1.51570889]
[1768489681754,12.29368606,143.64,143.6,12.7]
[1768489682065,12.29368606,143.63,143.6,12.7]
[1768489682268,1.48483872,143.61,143.6,12.7]
[1768489682649,22.11663887,143.65,143.61,1.51570889]
[1768489682970,12.29368606,143.64,143.6,12.7]
[1768489683269,11.30779153,143.65,143.6,8.47938885]
[1768489683466,10.80884734,143.64,143.6,1.51570889]
[1768489683867,12.79263025,143.65,143.6,1.51570889]
[1768489684065,10.80884734,143.64,143.6,1.51570889]
[1768489684364,10.80884734,143.64,143.6,8.47944398]
[1768489684573,10.80884734,143.64,143.6,1.51570889]
[1768489684747,1.48483872,143.61,143.57,1.51570889]
[1768489684951,1.48483872,143.61,143.58,12.7]
[1768489685147,1.48483872,143.63,143.58,19.66474665]
[1768489685356,5.83116082,143.65,143.6,8.47942709]
[1768489685559,1.48483872,143.64,143.6,1.51570889]
[1768489685762,12.29368606,143.64,143.6,8.47947121]
[1768489685959,22.11669592,143.65,143.6,8.47947121]
[1768489686156,12.29368606,143.61,143.59,12.7]
[1768489686668,1.48483872,143.59,143.54,1.51570889]
[1768489686869,1.48483872,143.59,143.55,14.21570889]
[1768489687773,17.77263564,143.6,143.56,8.48140634]
[1768489687973,1.48483872,143.62,143.57,1.51570889]
[1768489688170,1.48483872,143.62,143.58,12.7]
[1768489688361,17.40627537,143.63,143.58,12.7]
[1768489688362,10.80884734,143.6,143.58,12.67000001]
[1768489688555,10.80884734,143.6,143.56,1.51570889]
[1768489688760,10.80884734,143.59,143.56,12.7]
[1768489688960,6.96419566,143.6,143.56,14.21570889]
[1768489689271,6.96345162,143.61,143.56,21.18132983]
[1768489689488,19.25713768,143.61,143.56,21.18132983]
[1768489689658,8.44829034,143.61,143.56,21.18132983]
[1768489689859,8.44829034,143.61,143.56,12.7]
[1768489689860,12.29368606,143.59,143.56,12.7]
[1768489690374,1.48483872,143.59,143.56,12.7]
[1768489690553,12.29368606,143.59,143.56,12.7]
[1768489690751,6.96475832,143.58,143.55,12.7]
[1768489690958,19.25844438,143.58,143.53,6.96710851]
[1768489691154,1.48483872,143.57,143.52,1.51570889]
[1768489691352,12.29368606,143.56,143.51,6.96799062]
[1768489691567,10.80884734,143.57,143.52,21.18313622]
[1768489691855,6.96429879,143.59,143.53,1.51570889]
[1768489692055,10.80884734,143.59,143.55,1.51570889]
[1768489692255,8.44820352,143.61,143.56,21.1812711]
[1768489692471,19.25705086,143.61,143.57,12.7]
[1768489692659,8.44820352,143.61,143.57,19.66518859]
[1768489692865,8.4477551,143.62,143.57,14.21570889]
[1768489693070,10.80884734,143.61,143.57,14.21570889]
[1768489693274,12.29368606,143.61,143.57,14.21570889]
[1768489693496,12.29368606,143.6,143.57,12.7]
[1768489693697,12.29368606,143.6,143.55,1.51570889]
[1768489693886,10.80884734,143.59,143.57,12.7]
[1768489694086,10.80884734,143.59,143.57,12.67000001]
[1768489694293,12.29368606,143.6,143.57,12.67000001]
[1768489694487,1.48483872,143.6,143.57,12.67000001]
[1768489694803,19.25784456,143.6,143.57,12.67000001]
[1768489695005,12.29368606,143.59,143.56,12.7]
[1768489695306,1.48483872,143.59,143.56,12.7]
[1768489695514,6.9641585,143.6,143.56,1.51570889]
[1768489695706,19.25698577,143.62,143.57,14.21570889]
[1768489695901,19.25698577,143.62,143.58,12.7]
[1768489696213,10.80884734,143.61,143.58,12.7]
[1768489696504,10.80884734,143.63,143.57,6.9652257]
[1768489696705,12.29368606,143.61,143.5,10.80884734]
[1768489696901,1.48483872,143.59,143.53,10.80884734]
[1768489697101,10.80884734,143.6,143.54,23.50884734]
[1768489697297,1.48483872,143.61,143.54,12.7]
[1768489697512,10.80884734,143.6,143.54,12.7]
[1768489697886,10.80884734,143.6,143.55,1.51570889]
[1768489698498,10.80884734,143.6,143.56,8.4814375]
[1768489698790,19.25756932,143.6,143.56,1.51570889]
[1768489698984,12.29368606,143.57,143.51,18.93571948]
[1768489699203,10.80884734,143.56,143.52,12.7]
[1768489699402,12.29368606,143.57,143.52,14.21570889]
[1768489699603,12.29368606,143.57,143.51,6.96797629]
[1768489699604,1.48483872,143.55,143.51,14.21570889]
[1768489699796,10.80884734,143.57,143.53,1.51570889]
[1768489699995,1.48483872,143.58,143.53,1.51570889]
[1768489700210,12.29368606,143.58,143.53,1.51570889]
[1768489700700,10.80884734,143.6,143.55,1.51570889]
[1768489700904,10.80884734,143.59,143.56,12.7]
[1768489701211,12.57698862,143.59,143.56,12.7]
[1768489702214,1.76814128,143.59,143.56,12.7]
[1768489702390,12.57698862,143.59,143.56,12.7]
[1768489702592,19.54132878,143.59,143.56,12.7]
[1768489702891,10.80884734,143.58,143.56,12.7]
[1768489703209,8.73248144,143.59,143.54,8.80832226]
[1768489703401,1.76814128,143.58,143.55,12.7]
[1768489703607,12.57698862,143.58,143.55,12.7]
[1768489703791,6.96434016,143.59,143.55,14.54196134]
[1768489704118,8.73195177,143.6,143.56,1.84196134]
[1768489704492,12.57698862,143.6,143.56,8.80759158]
[1768489704893,1.76814128,143.6,143.56,8.80759158]
[1768489705095,10.80884734,143.63,143.57,1.79111112]
[1768489705298,10.80884734,143.63,143.58,14.49111112]
[1768489705798,12.60647299,143.64,143.59,1.79111112]
[1768489705998,10.80884734,143.63,143.59,1.79111112]
[1768489706798,8.75987469,143.64,143.59,8.75520505]
[1768489707006,19.56872203,143.64,143.59,8.75520505]
[1768489707693,8.75987469,143.64,143.59,8.75520505]
[1768489707912,19.56872203,143.64,143.59,8.75520505]
[1768489708115,10.80884734,143.63,143.59,8.75520505]
[1768489708912,12.60647299,143.64,143.59,8.75520505]
[1768489709115,13.03647299,143.67,143.6,10.80884734]
[1768489709317,2.22762565,143.67,143.61,12.7]
[1768489709616,13.03647299,143.67,143.61,12.7]
[1768489709818,0.43,143.67,143.61,23.50884734]
[1768489709998,0.43,143.67,143.62,10.80884734]
[1768489710316,0.43,143.67,143.63,6.96233377]
[1768489710620,19.56659466,143.68,143.64,12.7]
[1768489710823,10.80884734,143.69,143.64,12.67000001]
[1768489711002,1.79762565,143.7,143.64,12.67000001]
[1768489711203,12.60647299,143.7,143.65,1.79111112]
[1768489711517,1.79762565,143.71,143.65,1.79111112]
[1768489711709,19.56498274,143.71,143.65,1.79111112]
[1768489711914,12.60647299,143.7,143.65,1.79111112]
[1768489712111,1.79762565,143.7,143.66,19.66061361]
[1768489712706,8.75496714,143.74,143.67,1.79111112]
[1768489713018,10.80884734,143.73,143.67,1.79111112]
[1768489713207,12.60647299,143.73,143.67,1.79111112]
[1768489713604,12.60647299,143.7,143.68,12.7]
[1768489714002,1.79762565,143.7,143.68,12.67000001]
[1768489714220,19.5655305,143.7,143.65,8.75229446]
[1768489714399,19.5655305,143.7,143.66,12.7]
[1768489714908,19.56511153,143.71,143.66,21.45180631]
[1768489715108,12.60647299,143.71,143.67,6.96020713]
[1768489715414,12.60647299,143.71,143.67,8.75131825]
[1768489715617,10.80884734,143.72,143.68,8.75098423]
[1768489715919,1.79762565,143.73,143.69,14.49111112]
[1768489715920,12.60647299,143.73,143.69,14.49111112]
[1768489716102,10.80884734,143.72,143.69,14.49111112]
[1768489716422,19.56434939,143.73,143.69,21.45049872]
[1768489716804,8.75550205,143.73,143.69,14.49111112]
[1768489716995,19.56434939,143.73,143.69,14.49111112]
[1768489717194,8.75550205,143.73,143.69,14.49111112]
[1768489717394,12.60647299,143.72,143.67,8.75150004]
[1768489717618,17.76672374,143.73,143.68,14.49111112]
[1768489717824,17.76672374,143.73,143.69,1.79111112]
[1768489718212,19.56434939,143.73,143.68,21.45085722]
[1768489718528,8.75550205,143.73,143.68,21.45085722]
[1768489718729,19.56434939,143.73,143.68,21.45085722]
[1768489719112,8.75550205,143.73,143.68,21.45085722]
[1768489719313,8.75533102,143.73,143.68,21.45085722]
[1768489719518,12.82146799,143.73,143.68,21.45085722]
[1768489720233,1.79762565,143.73,143.69,1.79111112]
[1768489720404,11.02327045,143.74,143.69,1.79111112]
[1768489720606,115.9204728,143.75,143.69,1.79111112]
[1768489721243,108.96376262,143.75,143.71,1.79111112]
[1768489721405,5.86376262,143.76,143.72,14.49111112]
[1768489721609,5.86376262,143.75,143.72,12.7]
[1768489722017,1.79762565,143.75,143.72,12.7]
[1768489722330,5.86376262,143.75,143.72,12.7]
[1768489722510,12.82062223,143.75,143.72,12.7]
[1768489723927,5.86376262,143.73,143.68,1.79111112]
[1768489724134,1.79762565,143.71,143.69,12.7]
[1768489724436,4.06613697,143.73,143.69,14.49111112]
[1768489724909,4.06613697,143.73,143.69,21.45043464]
[1768489725111,8.75505755,143.74,143.69,21.45043464]
[1768489725435,12.82119452,143.74,143.69,21.45043464]
[1768489725825,4.06613697,143.73,143.69,21.45043464]
[1768489726336,12.82119452,143.74,143.69,21.45043464]
[1768489726644,5.86376262,143.74,143.69,21.45043464]
[1768489726832,5.86376262,143.74,143.69,38.84900099]
[1768489727036,12.82109764,143.74,143.69,21.45043464]
[1768489727533,12.82109764,143.74,143.7,12.7]
[1768489729014,12.82109764,143.74,143.71,12.7]
[1768489732025,12.82109764,143.74,143.69,8.75036308]
[1768489732251,6.19200345,143.72,143.7,12.7]
[1768489732630,13.15001261,143.72,143.7,12.7]
[1768489732935,4.06613697,143.72,143.7,12.7]
[1768489734148,9.08356874,143.73,143.7,12.7]
[1768489734337,2.12586648,143.75,143.71,2.09597699]
[1768489734544,6.19200345,143.75,143.71,2.09597699]
[1768489734739,13.14864618,143.75,143.71,9.0542626]
[1768489734943,2.12586648,143.74,143.71,6.95828561]
[1768489735356,6.19200345,143.74,143.7,19.65872258]
[1768489735562,6.19200345,143.74,143.71,6.95838154]
[1768489736066,6.19200345,143.74,143.7,12.7]
[1768489736067,6.19200345,143.72,143.7,12.7]
[1768489736363,6.19200345,143.71,143.7,12.7]
[1768489737137,4.06613697,143.71,143.7,12.7]
[1768489737356,2.60251044,143.72,143.7,12.7]
[1768489738256,2.12586648,143.76,143.7,12.7]
[1768489738426,125.97565807,143.77,143.64,37.40947824]
[1768489738427,4.72837692,143.73,143.71,12.7]
[1768489738635,4.72837692,143.72,143.68,12.7]
[1768489739032,11.68638,143.72,143.68,19.65982503]
[1768489739464,11.68638,143.72,143.68,21.75580202]
[1768489740657,4.72837692,143.72,143.68,21.75580202]
[1768489741456,11.68549081,143.74,143.69,2.09597699]
[1768489741956,2.12586648,143.71,143.69,12.7]
[1768489742848,4.72837692,143.72,143.69,19.65938717]
[1768489743049,4.72837692,143.72,143.68,9.05566416]
[1768489743254,4.72837692,143.72,143.69,12.7]
[1768489743457,2.12586648,143.72,143.69,19.65930912]
[1768489743753,11.68634744,143.73,143.69,19.65930912]
[1768489743953,4.72837692,143.72,143.69,12.7]
[1768489744164,4.72837692,143.71,143.69,12.7]
[1768489744664,2.12586648,143.69,143.64,2.09597699]
[1768489744854,4.72837692,143.68,143.65,12.7]
[1768489745049,2.12586648,143.67,143.62,2.09597699]
[1768489745265,11.68788766,143.69,143.64,9.05771033]
[1768489745456,2.12586648,143.68,143.64,9.05771033]
[1768489745762,4.72837692,143.7,143.65,2.09597699]
[1768489745968,4.72837692,143.7,143.66,12.7]
[1768489746765,2.60251044,143.69,143.66,12.7]
[1768489746957,9.08485949,143.7,143.66,19.66076421]
[1768489747263,11.68736993,143.7,143.66,12.7]
[1768489747472,2.60251044,143.69,143.66,12.7]
[1768489747765,4.72837692,143.69,143.66,12.7]
[1768489748765,9.56242135,143.68,143.66,12.7]
[1768489748951,4.72837692,143.67,143.65,12.7]
[1768489749154,9.56242135,143.68,143.65,12.7]
[1768489749365,11.68784438,143.69,143.65,21.75727434]
[1768489749568,2.60251044,143.68,143.65,14.79597699]
[1768489749957,2.60251044,143.68,143.65,21.75733935]
[1768489750150,9.08533394,143.69,143.65,21.75733935]
[1768489750151,6.95946746,143.69,143.65,21.75733935]
[1768489750353,9.5619779,143.69,143.65,21.75733935]
[1768489750752,4.72837692,143.67,143.65,12.7]
[1768489750957,2.60251044,143.68,143.65,12.7]
[1768489751549,2.60251044,143.67,143.62,9.05857473]
[1768489751763,2.60251044,143.67,143.63,12.7]
[1768489752274,2.60251044,143.67,143.64,12.7]
[1768489752772,9.56311374,143.67,143.64,12.7]
[1768489752981,9.56311374,143.67,143.6,20.0115186]
[1768489752982,4.72837692,143.65,143.63,12.7]
[1768489753267,11.68898022,143.67,143.63,12.7]
[1768489753469,2.12586648,143.67,143.64,6.96178576]
[1768489753886,103.1,143.69,143.65,2.09597699]
[1768489754183,9.08501074,143.7,143.66,12.7]
[1768489754365,9.08501074,143.7,143.66,14.79597699]
[1768489754366,11.68752118,143.7,143.66,14.79597699]
[1768489754684,6.95868386,143.71,143.67,2.09597699]
[1768489754981,6.95819605,143.72,143.68,2.09597699]
[1768489755165,2.60251044,143.73,143.7,2.09597699]
[1768489755367,4.72837692,143.75,143.7,2.09597699]
[1768489755678,4.66806409,143.78,143.73,2.09597699]
[1768489755873,0.2,143.78,143.75,2.09597699]
[1768489756265,1e-08,143.8,143.76,2.09597699]